fUSD/lending_fUSD_20250622
["ID","MTS","AMOUNT","RATE_DAILY","PERIOD"]
[366982445,1750605038320,-500.0,0.00023033,2]
[366982446,1750605038330,-153.04511216,0.00023033,2]
[366982447,1750605038340,-207.4,0.00023033,2]
[366982448,1750605038349,-180.19458402,0.00023065,2]
[366982449,1750605038384,-14.80541598,0.00023065,2]
[366982450,1750605038394,-200.0,0.00023207,7]
[366982451,1750605038404,-376.98,0.00023225,2]
[366982452,1750605038413,-168.85,0.00023232,2]
[366982453,1750605038423,-23900.0,0.00023326,2]
[366982454,1750605038433,-1000.0,0.00023335,2]
[366982455,1750605038443,-587.0,0.00023349,2]
[366982456,1750605038452,-163.85,0.00023471,2]
[366982457,1750605038462,-205.0,0.00023486,4]
[366982458,1750605038472,-666.0,0.00023503,2]
[366982459,1750605038484,-1308.63,0.00023518,2]
[366982460,1750605038493,-2351.0,0.00023574,2]
[366982461,1750605038503,-2680.83712567,0.00023693,9]
[366982462,1750605038513,-168.0,0.00023702,2]
[366982463,1750605038523,-2687.360642,0.00023743,2]
[366982464,1750605038533,-311.74,0.00023836,2]
[366982465,1750605038544,-500.0,0.00023962,5]
[366982466,1750605038554,-196.52,0.00024,2]
[366982467,1750605038563,-30461.46,0.00024,3]
[366982468,1750605038583,-4096.0,0.00024221,2]
[366982470,1750605038592,-156.0,0.00024221,2]
[366982472,1750605038602,-2687.360642,0.00024344,3]
[366982474,1750605038612,-200.0,0.00024361,2]
[366982477,1750605038621,-1005.5137,0.00024392,2]
[366982480,1750605038631,-156.587,0.00024402,2]
[366982483,1750605038640,-215.0738,0.00024402,2]
[366982486,1750605038649,-2680.83712567,0.00024452,11]
[366982489,1750605038659,-209.7,0.000246,2]
[366982492,1750605038669,-1000.0,0.00024658,2]
[366982495,1750605038678,-250.0,0.00024897,2]
[366982498,1750605038690,-2469.31,0.000249,2]
[366982502,1750605038703,-322.45109,0.00024952,15]
[366982504,1750605038713,-1852.42,0.00025069,2]
[366982507,1750605038723,-2680.83712567,0.0002521,12]
[366982510,1750605038738,-205.0,0.00025225,7]
[366982513,1750605038755,-823.0,0.00025433,2]
[366982516,1750605038764,-566.68270495,0.000257,8]
[366982518,1750605038774,-162.380719,0.00025771,2]
[366982521,1750605038784,-223.0315306,0.00025771,2]
[366982523,1750605038794,-299.99,0.00025786,12]
[366982524,1750605038803,-999.99,0.00025786,2]
[366982527,1750605038814,-150.99,0.00025786,2]
[366982529,1750605038823,-4483.53,0.00025786,10]
[366982531,1750605038833,-653.45034995,0.000258,2]
[366982533,1750605038842,-3292.0,0.00025801,2]
[366982535,1750605038852,-191.42,0.00025959,2]
[366982537,1750605038862,-2680.83712567,0.00025969,14]
[366982539,1750605038871,-168.0,0.00026206,2]
[366982541,1750605038881,-1000.0,0.00026252,2]
[366982543,1750605038891,-1000.0,0.00026593,2]
[366982545,1750605038901,-319.253,0.00026593,2]
[366982547,1750605038910,-187.46,0.00026676,2]
[366982549,1750605038919,-151.6859,0.00026696,3]
[366982551,1750605038929,-2687.360642,0.00026696,3]
[366982553,1750605038939,-2680.83712567,0.00026728,15]
[366982555,1750605038949,-888.003,0.00026839,14]
[366982557,1750605038959,-173.22988959,0.00026839,14]
[366982559,1750605038969,-205.0,0.00026964,9]
[366982561,1750605038980,-150.0,0.00027,2]
[366982563,1750605038990,-400.40013288,0.00027,2]
[366982565,1750605038999,-234.5734465,0.00027047,2]
[366982567,1750605039009,-168.85,0.00027105,120]
[366982569,1750605039019,-604.29157028,0.00027105,2]
[366982571,1750605039029,-168.3888056,0.0002714,2]
[366982573,1750605039039,-231.28369723,0.0002714,2]
[366982575,1750605039049,-2687.360642,0.00027196,2]
[366982577,1750605039059,-4096.0,0.00027221,2]
[366982579,1750605039068,-156.0,0.00027221,2]
[366982581,1750605039080,-162.32623596,0.00027297,2]
[366982583,1750605039090,-837.432505,0.00027372,8]
[366982585,1750605039100,-500.0,0.00027373,2]
[366982587,1750605039110,-191.42,0.00027377,2]
[366982589,1750605039119,-1549.09,0.00027377,2]
[366982591,1750605039129,-34460.3534246,0.00027387,3]
[366982593,1750605039139,-191.42,0.00027387,2]
[366982595,1750605039148,-191.42,0.00027387,2]
[366982597,1750605039158,-500.0,0.00027389,2]
[366982599,1750605039167,-500.0,0.00027389,2]
[366982601,1750605039177,-500.0,0.00027389,2]
[366982603,1750605039187,-500.0,0.00027389,2]
[366982605,1750605039196,-500.0,0.00027389,2]
[366982607,1750605039206,-628.5374874,0.00027389,2]
[366982609,1750605039215,-581.74988074,0.00027389,2]
[366982611,1750605039225,-188.52140202,0.00027389,2]
[366982613,1750605039237,-500.0,0.00027389,2]
[366982615,1750605039246,-367.50989143,0.00027389,2]
[366982617,1750605039256,-1060.0,0.00027397,120]
[366982619,1750605039266,-96605.12,0.00027397,2]
[366982621,1750605039275,-4655.78,0.00027397,2]
[366982623,1750605039284,-150.0,0.00027397,2]
[366982625,1750605039293,-318.01398317,0.00027397,2]
[366982627,1750605039303,-227.34,0.00027397,80]
[366982629,1750605039312,-300.0,0.00027397,2]
[366982631,1750605039322,-527.44004875,0.000274,2]
[366982633,1750605039331,-1200.0,0.000274,2]
[366982635,1750605039342,-2680.83712567,0.00027486,17]
[366982637,1750605039351,-604.29157028,0.00027619,2]
[366982639,1750605039361,-1152.0,0.00027703,2]
[366982641,1750605039371,-187.59663583,0.00027839,2]
[366982643,1750605039381,-150.0,0.00027934,2]
[366982645,1750605039391,-168.0,0.00027966,2]
[366982647,1750605039401,-2999.99,0.00028,2]
[366982649,1750605039411,-3000.66,0.00028,2]
[366982652,1750605039421,-278.86,0.00028,2]
[366982653,1750605039430,-2999.97,0.00028,2]
[366982655,1750605039440,-3000.0,0.00028,2]
[366982657,1750605039449,-1787.97,0.00028,2]
[366982660,1750605039459,-2999.99,0.00028,2]
[366982662,1750605039469,-2162.695661,0.00028,2]
[366982664,1750605039482,-1332.585771,0.00028042,60]
[366982666,1750605039492,-513.515921,0.00028042,120]
[366982668,1750605039502,-150.0,0.00028118,2]
[366982669,1750605039523,-218.0,0.00028123,11]
[366982672,1750605039547,-604.29157028,0.00028133,2]
[366982674,1750605039576,-191.42,0.00028133,2]
[366982676,1750605039587,-34460.3534246,0.00028143,3]
[366982678,1750605039597,-1721.0,0.0002824,2]
[366982680,1750605039607,-152.0,0.0002824,3]
[366982681,1750605039616,-2680.83712567,0.00028245,18]
[366982683,1750605039626,-2687.360642,0.000284,5]
[366982686,1750605039639,-168.0,0.00028475,2]
[366982688,1750605039648,-1500.0,0.000285,2]
[366982690,1750605039659,-174.61919141,0.00028509,2]
[366982692,1750605039669,-239.84119403,0.00028509,2]
[366982694,1750605039679,-224.7824722,0.00028547,2]
[366982696,1750605039689,-5800.0,0.00028631,2]
[366982698,1750605039702,-5800.0,0.0002864,2]
[366982700,1750605039712,-604.29157028,0.00028647,2]
[366982702,1750605039721,-5800.0,0.00028648,2]
[366982704,1750605039734,-205.0,0.00028703,12]
[366982706,1750605039746,-168.0,0.00028733,2]
[366982708,1750605039756,-1218.0,0.00028767,5]
[366982710,1750605039766,-4655.78,0.00028767,2]
[366982712,1750605039776,-162.32623595,0.00028799,2]
[366982714,1750605039788,-150.0,0.00028839,2]
[366982716,1750605039798,-158.0,0.00029,120]
[366982718,1750605039808,-176.0,0.00029,120]
[366982720,1750605039818,-1500.0,0.00029,2]
[366982722,1750605039829,-2680.83712567,0.00029003,20]
[366982724,1750605039840,-1333.0,0.00029041,120]
[366982726,1750605039850,-151.6859,0.00029048,3]
[366982728,1750605039861,-2687.360642,0.00029048,3]
[366982730,1750605039871,-152.0,0.00029058,4]
[366982732,1750605039881,-604.29157028,0.0002916,2]
[366982734,1750605039891,-1000.0,0.00029169,2]
[366982736,1750605039900,-150.0,0.00029304,2]
[366982738,1750605039910,-2687.360642,0.000294,4]
[366982740,1750605039920,-1500.0,0.000295,2]
[366982742,1750605039931,-150.0,0.0002956,2]
[366982744,1750605039941,-834.42866044,0.00029592,3]
[366982746,1750605039951,-1549.09,0.00029655,2]
[366982748,1750605039960,-34460.3534246,0.00029665,3]
[366982750,1750605039971,-400.0,0.0002967,2]
[366982752,1750605039984,-400.0,0.0002967,2]
[366982754,1750605039993,-604.29157028,0.00029674,2]
[366982784,1750605040262,-34460.3534246,0.0002969,3]
[366982786,1750605040273,-151.3408838,0.00029692,2]
[366982788,1750605040282,-5833.33333,0.00029692,2]
[366982790,1750605040293,-4724.51,0.000297,2]
[366982792,1750605040303,-3623.83,0.000297,2]
[366982794,1750605040315,-834.42866044,0.000297,7]
[366982796,1750605040324,-200.0,0.000297,10]
[366982798,1750605040333,-173.94017986,0.00029719,2]
[366982800,1750605040343,-13023.025225,0.00029739,2]
[366982802,1750605040353,-2680.83712567,0.00029762,21]
[366982804,1750605040363,-34460.3534246,0.0002978,3]
[366982806,1750605040372,-5411.920679,0.0002978,3]
[366982808,1750605040382,-34460.3534246,0.0002979,3]
[366982810,1750605040391,-8117.8810185,0.0002979,3]
[366982812,1750605040401,-214.39860607,0.0002979,2]
[366982814,1750605040411,-151.0,0.00029797,7]
[366982816,1750605040421,-50000.0,0.000298,6]
[366982818,1750605040431,-151.0,0.000298,7]
[366982820,1750605040441,-500.0,0.000298,10]
[366982822,1750605040451,-224.78247219,0.00029808,15]
[366982824,1750605040461,-2705.9603395,0.00029855,3]
[366982826,1750605040471,-2705.9603395,0.00029869,3]
[366982828,1750605040484,-152.0,0.00029876,5]
[366982830,1750605040494,-181.08010149,0.00029878,2]
[366982832,1750605040504,-248.71531821,0.00029878,2]
[366982834,1750605040514,-175.01490826,0.00029879,2]
[366982836,1750605040524,-34460.3534246,0.0002988,3]
[366982838,1750605040534,-10823.841358,0.0002988,3]
[366982840,1750605040544,-34460.3534246,0.00029889,3]
[366982842,1750605040554,-13529.8016975,0.00029889,3]
[366982844,1750605040565,-226.65022956,0.0002989,2]
[366982846,1750605040575,-76365.73408952,0.000299,2]
[366982848,1750605040585,-800.0,0.000299,10]
[366982850,1750605040594,-649.1126964,0.0002991,2]
[366982852,1750605040604,-2687.360642,0.00029938,5]
[366982854,1750605040614,-152.55,0.0002994,2]
[366982856,1750605040624,-34460.3534246,0.00029951,3]
[366982858,1750605040633,-5411.920679,0.00029951,3]
[366982860,1750605040643,-5411.920679,0.0002996,3]
[366982862,1750605040653,-34460.3534246,0.0002996,3]
[366982864,1750605040662,-8117.8810185,0.0002996,3]
[366982866,1750605040672,-34460.3534246,0.00029969,3]
[366982868,1750605040682,-10823.841358,0.00029969,3]
[366982870,1750605040692,-68920.7068493,0.0002997,3]
[366982872,1750605040707,-24353.6430555,0.0002997,3]
[366982875,1750605040717,-168.5591253,0.0002997,2]
[366982877,1750605040729,-34460.3534246,0.0002998,3]
[366982878,1750605040740,-8117.8810185,0.0002998,3]
[366982880,1750605040754,-137841.413699,0.0002998,3]
[366982883,1750605040764,-200.0,0.00029982,2]
[366982885,1750605040775,-600.71351009,0.0002999,2]
[366982886,1750605040785,-230.51899021,0.0002999,2]
[366982888,1750605040794,-1286.05931421,0.0002999,2]
[366982892,1750605040805,-50000.0,0.0003,7]
[366982895,1750605040815,-166676.30407575,0.0003,2]
[366982898,1750605040825,-1025.46659195,0.0003,2]
[366982901,1750605040835,-1763.1409855,0.0003,2]
[366982903,1750605040844,-161.04679286,0.0003,2]
[366982905,1750605040853,-1556.18595323,0.0003,2]
[366982906,1750605040863,-2657.16260698,0.0003,5]
[366982908,1750605040873,-1000.0,0.0003,7]
[366982911,1750605040883,-1000.0,0.0003,2]
[366982913,1750605040894,-2650.70475982,0.0003,2]
[366982915,1750605040904,-30779.07703698,0.0003,2]
[366982917,1750605040914,-30000.0,0.0003,10]
[366982919,1750605040925,-40395.20614648,0.0003,10]
[366982921,1750605040935,-3615.06688358,0.0003,15]
[366982923,1750605040945,-7533.0,0.0003,3]
[366982925,1750605040955,-368.09955978,0.0003,2]
[366982927,1750605040965,-1800.0,0.0003,5]
[366982929,1750605040975,-2312.52,0.0003,5]
[366982931,1750605040986,-262.0,0.0003,30]
[366982933,1750605040996,-157.0,0.0003,30]
[366982935,1750605041006,-196.0,0.0003,7]
[366982937,1750605041016,-151.0,0.0003,7]
[366982939,1750605041025,-560.84781723,0.0003,30]
[366982941,1750605041034,-300.52112628,0.0003,5]
[366982943,1750605041044,-172.51239964,0.0003,30]
[366982945,1750605041054,-151.0,0.0003,7]
[366982947,1750605041064,-161.9224,0.0003,7]
[366982949,1750605041074,-151.0,0.0003,7]
[366982951,1750605041084,-151.0,0.0003,7]
[366982953,1750605041093,-151.0,0.0003,7]
[366982955,1750605041103,-151.0,0.0003,7]
[366982957,1750605041113,-151.0,0.0003,7]
[366982959,1750605041124,-151.0,0.0003,7]
[366982961,1750605041134,-151.0,0.0003,7]
[366982963,1750605041144,-151.0,0.0003,7]
[366982965,1750605041154,-151.0,0.0003,7]
[366982967,1750605041165,-151.0,0.0003,7]
[366982969,1750605041174,-151.0,0.0003,7]
[366982971,1750605041185,-151.0,0.0003,7]
[366982973,1750605041195,-404.697446,0.0003,7]
[366982975,1750605041206,-151.0,0.0003,7]
[366982977,1750605041216,-151.0,0.0003,7]
[366982979,1750605041225,-151.0,0.0003,7]
[366982981,1750605041237,-151.0,0.0003,7]
[366982984,1750605041248,-834.42866044,0.0003,10]
[366982985,1750605041258,-153.566114,0.0003,7]
[366982988,1750605041268,-196.52,0.0003,2]
[366982989,1750605041278,-1500.0,0.0003,2]
[366982991,1750605041288,-214.0,0.0003,2]
[366982993,1750605041297,-12857.52393844,0.0003,4]
[366982995,1750605041307,-7392.28,0.0003,2]
[366982997,1750605041316,-195.75662398,0.0003013,2]
[366982999,1750605041326,-151.0,0.00030136,7]
[366983002,1750605041336,-4655.78,0.00030137,2]
[366983004,1750605041346,-1613.0,0.00030175,2]
[366983005,1750605041355,-604.29157028,0.00030188,2]
[366983008,1750605041366,-50000.0,0.000302,7]
[366983009,1750605041375,-1282.882,0.00030221,2]
[366983011,1750605041384,-150.0,0.00030281,2]
[366983013,1750605041394,-162.32623595,0.000303,2]
[366983015,1750605041404,-582.0,0.00030301,2]
[366983017,1750605041413,-2700.04889507,0.00030341,3]
[366983019,1750605041423,-710.12,0.00030397,2]
[366983021,1750605041433,-50000.0,0.000304,8]
[366983023,1750605041444,-151.0,0.0003041,7]
[366983025,1750605041453,-2687.360642,0.00030435,4]
[366983027,1750605041463,-205.0,0.00030441,15]
[366983029,1750605041473,-1000.0,0.000305,2]
[366983031,1750605041486,-2680.83712567,0.00030521,23]
[366983033,1750605041497,-150.5,0.0003055,120]
[366983035,1750605041507,-150.5,0.0003056,120]
[366983037,1750605041518,-150.5,0.0003057,120]
[366983039,1750605041528,-50000.0,0.000306,9]
[366983041,1750605041538,-151.6859,0.00030648,2]
[366983043,1750605041548,-2687.360642,0.00030648,2]
[366983045,1750605041558,-150.0,0.00030673,2]
[366983047,1750605041568,-229.22104507,0.00030685,2]
[366983049,1750605041578,-152.0,0.00030694,6]
[366983051,1750605041588,-604.29157028,0.00030702,2]
[366983053,1750605041597,-50000.0,0.000308,10]
[366983055,1750605041607,-7392.28,0.000308,2]
[366983057,1750605041617,-227.34,0.00030822,80]
[366983059,1750605041626,-168.85,0.00030977,120]
[366983061,1750605041636,-50000.0,0.00031,11]
[366983063,1750605041645,-151.0,0.00031,7]
[366983065,1750605041655,-1000.0,0.00031,2]
[366983067,1750605041665,-262.0,0.00031,30]
[366983069,1750605041677,-157.0,0.00031,30]
[366983072,1750605041687,-5663.36,0.00031,7]
[366983073,1750605041698,-150.0,0.00031002,2]
[366983076,1750605041708,-224.78247219,0.0003107,15]
[366983078,1750605041723,-151.0,0.000311,7]
[366983080,1750605041736,-151.0,0.000311,7]
[366983082,1750605041750,-151.0,0.000311,7]
[366983084,1750605041759,-151.0,0.000311,7]
[366983086,1750605041769,-151.0,0.000311,7]
[366983088,1750605041780,-50000.0,0.000312,12]
[366983090,1750605041790,-604.29157028,0.00031216,2]
[366983092,1750605041800,-187.78006525,0.00031247,2]
[366983094,1750605041810,-257.91778498,0.00031247,2]
[366983096,1750605041820,-2680.83712567,0.00031279,24]
[366983098,1750605041829,-151.6859,0.000314,3]
[366983100,1750605041839,-2687.360642,0.000314,3]
[366983102,1750605041848,-2687.360642,0.0003147,4]
[366983104,1750605041858,-2687.360642,0.00031475,5]
[366983106,1750605041868,-152.072876,0.000315,7]
[366983107,1750605041877,-1000.0,0.000315,2]
[366983110,1750605041887,-7392.28,0.000315,2]
[366983112,1750605041897,-4655.78,0.00031507,2]
[366983114,1750605041907,-152.0,0.00031512,7]
[366983116,1750605041916,-151.0,0.000316,7]
[366983117,1750605041926,-151.0,0.000316,7]
[366983118,1750605041936,-5833.33333,0.00031692,2]
[366983119,1750605041945,-175.01490821,0.00031716,2]
[366983120,1750605041954,-150.0,0.00031723,2]
[366983121,1750605041963,-604.29157028,0.0003173,2]
[366983122,1750605041973,-226.65022954,0.0003178,3]
[366983123,1750605041984,-162.32623595,0.00031802,2]
[366983124,1750605041994,-6765.18047119,0.00031819,2]
[366983125,1750605042004,-151.0,0.000319,7]
[366983126,1750605042013,-4575.7716565,0.00032,10]
[366983127,1750605042023,-1540.54470638,0.00032,2]
[366983128,1750605042033,-35000.0,0.00032,2]
[366983129,1750605042042,-1000.0,0.00032,2]
[366983130,1750605042052,-262.0,0.00032,30]
[366983131,1750605042062,-157.0,0.00032,30]
[366983132,1750605042071,-151.0,0.00032,7]
[366983133,1750605042081,-151.0,0.00032,7]
[366983134,1750605042091,-218.484371,0.00032,7]
[366983135,1750605042101,-151.0,0.00032,7]
[366983136,1750605042111,-404.697446,0.00032,7]
[366983137,1750605042120,-2680.83712567,0.00032038,26]
[366983138,1750605042129,-150.0,0.00032043,2]
[366983139,1750605042139,-1000.0,0.00032086,2]
[366983140,1750605042149,-205.0,0.0003218,17]
[366983141,1750605042159,-7392.28,0.000322,2]
[366983142,1750605042169,-604.29157028,0.00032244,2]
[366983143,1750605042181,-375.22552514,0.00032329,7]
[366983144,1750605042193,-152.0,0.00032329,8]
[366983145,1750605042203,-224.78247219,0.00032331,15]
[366983146,1750605042214,-150.0,0.00032444,2]
[366983147,1750605042224,-1000.0,0.000325,2]
[366983148,1750605042236,-151.6859,0.00032505,4]
[366983149,1750605042245,-2687.360642,0.00032505,4]
[366983150,1750605042255,-194.72792766,0.00032616,2]
[366983151,1750605042265,-267.46074303,0.00032616,2]
[366983152,1750605042275,-161.0,0.00032622,14]
[366983153,1750605042285,-604.29157028,0.00032758,2]
[366983154,1750605042304,-2680.83712567,0.00032797,27]
[366983155,1750605042314,-4681.13223887,0.000328,2]
[366983156,1750605042323,-4000.0,0.00032816,4]
[366983157,1750605042334,-212.0,0.00032847,120]
[366983158,1750605042344,-212.0,0.00032857,120]
[366983159,1750605042354,-212.0,0.00032867,120]
[366983160,1750605042364,-1665.0,0.00032868,2]
[366983161,1750605042373,-333.71,0.00032877,2]
[366983162,1750605042383,-4655.78,0.00032877,2]
[366983163,1750605042392,-1000.42,0.000329,7]
[366983164,1750605042401,-385.0,0.000329,2]
[366983165,1750605042411,-724.0,0.000329,2]
[366983166,1750605042420,-7392.28,0.000329,14]
[366983167,1750605042429,-151.0,0.00032904,7]
[366983168,1750605042439,-151.0,0.00032904,7]
[366983169,1750605042448,-151.0,0.00032904,7]
[366983170,1750605042458,-151.0,0.00032904,7]
[366983171,1750605042468,-151.0,0.00032904,7]
[366983172,1750605042479,-2707.59,0.00032904,30]
[366983173,1750605042489,-1308.63,0.00032925,2]
[366983174,1750605042499,-4581.55812212,0.00033,2]
[366983175,1750605042509,-25252.21276075,0.00033,2]
[366983176,1750605042519,-1000.0,0.00033,2]
[366983177,1750605042528,-5000.0,0.00033,7]
[366983178,1750605042538,-262.0,0.00033,30]
[366983179,1750605042548,-157.0,0.00033,30]
[366983180,1750605042558,-530.690111,0.00033,14]
[366983181,1750605042567,-181.24506754,0.00033,2]
[366983182,1750605042577,-214.0,0.00033,2]
[366983183,1750605042586,-151.6859,0.00033012,5]
[366983184,1750605042596,-2687.360642,0.00033012,5]
[366983185,1750605042606,-217.60519212,0.000331,2]
[366983186,1750605042615,-152.0,0.00033147,9]
[366983187,1750605042625,-187.46,0.00033165,2]
[366983188,1750605042635,-150.0,0.00033165,2]
[366983189,1750605042645,-604.29157028,0.00033272,2]
[366983190,1750605042654,-162.32623595,0.00033303,2]
[366983192,1750605042664,-150.0,0.00033413,2]
[366983194,1750605042674,-1174.98947805,0.000335,2]
[366983196,1750605042683,-1000.0,0.000335,2]
[366983198,1750605042693,-154.12,0.000335,31]
[366983199,1750605042707,-154.12,0.000335,31]
[366983202,1750605042717,-154.12,0.000335,31]
[366983204,1750605042726,-154.12,0.000335,31]
[366983206,1750605042737,-154.12,0.000335,31]
[366983207,1750605042750,-154.12,0.000335,31]
[366983208,1750605042760,-154.12,0.000335,31]
[366983209,1750605042771,-154.12,0.000335,31]
[366983210,1750605042782,-151.6859,0.0003354,4]
[366983211,1750605042791,-2687.360642,0.0003354,4]
[366983212,1750605042801,-175.01490821,0.00033553,2]
[366983213,1750605042811,-2680.83712567,0.00033555,29]
[366983214,1750605042821,-224.78247219,0.00033593,15]
[366983215,1750605042832,-226.65022954,0.00033671,5]
[366983216,1750605042842,-5833.33334,0.00033692,2]
[366983218,1750605042852,-7392.28,0.000337,14]
[366983220,1750605042862,-604.29157028,0.00033786,2]
[366983221,1750605042872,-472212.16359093,0.000338,120]
[366983222,1750605042882,-150.0,0.00033886,2]
[366983223,1750605042892,-1100.0,0.000339,12]
[366983224,1750605042902,-205.0,0.00033919,20]
[366983225,1750605042912,-152.0,0.00033965,10]
[366983226,1750605042921,-1333.0,0.00033973,120]
[366983227,1750605042931,-201.93286099,0.00033985,2]
[366983228,1750605042941,-277.35679052,0.00033985,2]
[366983229,1750605042951,-150.0,0.00033999,3]
[366983230,1750605042961,-4000.0,0.00034,7]
[366983231,1750605042971,-976.96,0.00034,2]
[366983232,1750605042983,-1000.0,0.00034,14]
[366983233,1750605042993,-1000.0,0.00034,2]
[366983235,1750605043003,-2299.99999801,0.00034,2]
[366983236,1750605043013,-94775.98169792,0.00034,2]
[366983238,1750605043022,-262.0,0.00034,30]
[366983240,1750605043033,-157.0,0.00034,30]
[366983242,1750605043043,-2816.71107364,0.00034,120]
[366983243,1750605043054,-15192.0,0.00034,60]
[366983244,1750605043064,-179.0,0.00034,30]
[366983245,1750605043074,-2687.360642,0.00034,60]
[366983246,1750605043084,-5000.0,0.00034044,2]
[366983247,1750605043093,-5000.0,0.00034082,2]
[366983248,1750605043103,-78373.67449756,0.000341,2]
[366983249,1750605043113,-57089.71,0.000341,14]
[366983250,1750605043122,-151.6859,0.000341,2]
[366983252,1750605043131,-2687.360642,0.000341,2]
[366983253,1750605043141,-2099.65,0.00034132,2]
[366983254,1750605043150,-25000.0,0.00034137,2]
[366983255,1750605043160,-3500.66,0.00034192,2]
[366983256,1750605043169,-5000.0,0.000342,2]
[366983257,1750605043179,-5000.0,0.00034207,2]
[366983258,1750605043189,-1360.44,0.00034231,2]
[366983259,1750605043198,-227.34,0.00034247,120]
[366983260,1750605043207,-5000.0,0.00034276,2]
[366983261,1750605043217,-5000.0,0.00034291,2]
[366983262,1750605043226,-5000.0,0.00034305,2]
[366983263,1750605043238,-2680.83712567,0.00034314,30]
[366983264,1750605043247,-4514439.91047499,0.00034318,3]
[366983268,1750605044269,-10189.88455431,0.00034318,3]
[366983269,1750605044293,-671467.01949412,0.00034318,3]
[366983270,1750605044779,-644.5,0.00024952,15]
[366983271,1750605044789,-405.3,0.00034318,3]
[366983278,1750605044962,-1488.19903609,0.00034318,3]
[366983285,1750605045023,-1336.33598569,0.00034318,3]
[366983287,1750605045035,-947.72946,0.00034318,3]
[366983313,1750605046418,-20960.7552,0.00034318,3]
[366983314,1750605046445,-256.57632,0.00034318,3]
[366983315,1750605046456,-74788.23784026,0.00034318,3]
[366983316,1750605046467,-1589.32,0.00034318,3]
[366983317,1750605046566,-352.407,0.00034318,3]
[366983318,1750605046614,-5657.32918701,0.00034318,3]
[366983393,1750605047666,-299.99,0.00028042,5]
[366984371,1750605070374,-690.01,0.00028042,5]
[366984372,1750605070387,-12847861.7511998,0.00034318,3]
[366984373,1750605071478,-22799.45806564,0.00034318,3]
[366984474,1750605172737,165.72,0.00013699,2]
[366984506,1750605908609,18536.87033929,0.00012,2]
[366984507,1750605908637,10000.0,0.00012,2]
[366984508,1750605908661,10000.0,0.00012,2]
[366984509,1750605908685,10000.0,0.00012,2]
[366984510,1750605908707,10000.0,0.00012,2]
[366984511,1750605908730,10000.0,0.00012,2]
[366984512,1750605908752,10000.0,0.00012,2]
[366984513,1750605908773,10000.0,0.00012,2]
[366984514,1750605908796,6834.4296173,0.00012,2]
[366984688,1750606232478,-299.6,0.00019399,2]
[366984689,1750606232644,-874.089998,0.00019399,2]
[366984694,1750606232713,-26.310002,0.00019399,2]
[366984695,1750606232723,-300.0,0.00019399,2]
[366984696,1750606232732,-273.689998,0.000194,2]
[366984869,1750606238233,-359.66453002,0.000194,2]
[366984870,1750606238245,-6933.7957,0.000194,2]
[366984871,1750606238257,-1824.9,0.000194,2]
[366984872,1750606238289,-3277.94881386,0.000194,2]
[366984873,1750606238300,-7565.57555123,0.000194,2]
[366984874,1750606238426,-69740.54820353,0.000194,2]
[366984875,1750606238436,-906.72906827,0.0002,2]
[366984876,1750606238445,-2500.0,0.00020028,2]
[366984877,1750606238454,-181.4118475,0.00020055,2]
[366984878,1750606238464,-165.72,0.00020187,2]
[366984879,1750606238473,-2500.0,0.0002027,2]
[366984880,1750606238483,-1132.67,0.000204,2]